Cogmind - Beta 9.1 @@@ ROGUE MODE // 2019.11.01 @ 04:08:51 Player: MrPainting Result: Self-destructed Performance ------------- Evolutions (2) 1000 Regions Visited (5) 1000 Robots Destroyed (54) 270 Value Destroyed (1302) 1302 Prototype IDs (2) 40 Alien Tech Used (0) 0 Bonus (356) 356 TOTAL SCORE: 3968 Bonus ------- High Alert Combat Kills 56 Aligned with FarCom 300 Cogmind --------- Core Integrity 484/550 Matter 300/300 Energy 310/310 System Corruption 0% Temperature Cool (0) Location -8/Materials Parts ------- Power (1) Fission Core Propulsion (4) Light Treads Light Treads Light Treads Light Treads Utility (4) Large Storage Unit Large Storage Unit Improved Utility Shielding Light Armor Plating Weapon (2) AWS/Gauss Inventory (16) Flexi-carbon Leg Improved Heat Sink High-capacity Matter Pod (200) High-capacity Matter Pod (200) Advanced Visual Processing Unit Advanced Signal Interpreter Particle Charger Improved ECM Suite Arc Projector Arc Projector Arc Projector Arc Projector Bore Cannon Peak State ------------ Power Fission Core Propulsion Light Treads Light Treads Light Treads Light Treads Utility Large Storage Unit Improved ECM Suite Improved Utility Shielding Light Armor Plating Weapon AWS/Gauss Inventory Light Nuclear Core Light Treads Light Treads Flexi-carbon Leg Improved Heat Sink Large Storage Unit High-capacity Matter Pod High-capacity Matter Pod Advanced Visual Processing Unit Bore Cannon [Rating: 35] Favorites ----------- Power Light Nuclear Core Engine Ion Engine Power Core Light Nuclear Core Propulsion Light Treads Treads Light Treads Utility Large Storage Unit Device Improved ECM Suite Storage Large Storage Unit Protection Light Armor Plating Weapon AWS/Gauss Energy Gun Medium Laser Energy Cannon Latent Energy Streamer Ballistic Gun AWS/Gauss Build | -11 -10 -10 -10 -9 -8 ------- Run | Scr Mat Min Exi Min Mat Slots Evolved 4 | . . . . . 4 Power . | . . . . . . Propulsion 2 | . . . . . 2 Utility 2 | . . . . . 2 Weapon . | . . . . . . Parts Attached 30 | 5 7 . 5 1 12 Power 3 | 1 1 . . . 1 Engine 1 | 1 . . . . . Core 2 | . 1 . . . 1 Reactor . | . . . . . . Propulsion 11 | 2 2 . 1 . 6 Treads 11 | 2 2 . 1 . 6 Leg . | . . . . . . Wheel . | . . . . . . Hover . | . . . . . . Flight . | . . . . . . Utility 8 | . 1 . 2 1 4 Device 1 | . . . . . 1 Storage 4 | . 1 . 2 . 1 Processor . | . . . . . . Hackware . | . . . . . . Protection 3 | . . . . 1 2 Artifact . | . . . . . . Weapon 8 | 2 3 . 2 . 1 Energy Gun 3 | 2 1 . . . . Energy Cannon 1 | . . . 1 . . Ballistic Gun 4 | . 2 . 1 . 1 Ballistic Cannon . | . . . . . . Launcher . | . . . . . . Special Weapon . | . . . . . . Impact Weapon . | . . . . . . Slashing Weapon . | . . . . . . Piercing Weapon . | . . . . . . Special Melee Weapon . | . . . . . . Unidentified Prototypes 2 | . . . 2 . . Parts Lost 1 | . 1 . . . . Power . | . . . . . . Propulsion . | . . . . . . Utility . | . . . . . . Weapon 1 | . 1 . . . . Highest Loss Streak 1 | . 1 . . . . Average Slot Usage (%) 84 | . 75 85 88 85 85 Engine 1 | . 9 . . . . Core 11 | . 4 14 14 14 9 Treads 30 | . 28 28 28 28 36 Storage 16 | . 4 14 24 17 14 Protection 6 | . . . . 10 15 Energy Gun 5 | . 15 14 6 . . Ballistic Gun 12 | . 12 14 14 14 9 Naked Turns . | . . . . . . Heaviest Build 57 | 9 24 24 47 47 57 Greatest Support 80 | 40 40 40 40 40 80 Greatest Overweight (x) 1 | . . . 1 1 . Average Overweight (x) . | . . . . . . Largest Inventory Capacity 16 | 4 10 10 16 16 16 Average Capacity 11 | 4 6 10 11 11 13 Most Carried 16 | 4 4 9 10 10 16 Average Carried 8 | 1 2 6 9 9 12 Final Capacity 16 | 4 10 10 16 10 16 Final Carried 13 | 1 3 9 9 9 13 Class Distribution -------------------- 93% | Mutant 6% | Scavenger-Mutant Dominant Class ---------------- Mutant | -10/Materials Mutant | -10/Mines Mutant | -10/Exiles Mutant | -9/Mines Mutant | -8/Materials Resources | -11 -10 -10 -10 -9 -8 ----------- Run | Scr Mat Min Exi Min Mat Matter Collected 728 | 246 136 166 50 10 120 Remotely . | . . . . . . Salvage Created 1707 | . 258 165 . 229 1055 Parts 107 | . 18 10 . 15 64 Haulers Intercepted . | . . . . . . Recyclers Shooed 2 | . 2 . . . . Parts Field Recycled . | . . . . . . Retrieved Matter . | . . . . . . Parts Self-Destructed . | . . . . . . Prevented . | . . . . . . Kills | -11 -10 -10 -10 -9 -8 ------- Run | Scr Mat Min Exi Min Mat Combat Hostiles Destroyed 46 | . 5 4 . 10 27 Guns 46 | . 5 4 . 10 27 Classes Destroyed 9 | . 4 1 . . 4 Worker 2 | . . 2 . . . Tunneler 3 | . 1 1 . . 1 Recycler 1 | . 1 . . . . Watcher 2 | . . . . . 2 Swarmer 24 | . 3 3 . 7 11 Grunt 17 | . 2 1 . 3 11 Brawler 1 | . . . . . 1 Sentry 3 | . . . . . 3 Hunter 1 | . . . . . 1 Best Kill Streak 10 | . 4 4 . 4 10 Combat Bots Only 10 | . 3 3 . 4 10 Max Kills in Single Turn 2 | . 2 1 . 1 1 Gunslinging 1 | . 1 . . . . Exploded . | . . . . . . Melee . | . . . . . . Uniques/NPCs Destroyed . | . . . . . . Combat | -11 -10 -10 -10 -9 -8 -------- Run | Scr Mat Min Exi Min Mat Damage Taken 950 | . 281 136 . 183 350 Core 182 | . 34 50 . 32 66 Absorbed by Shields . | . . . . . . Core Remaining (%) 76 | 100 . . . 53 . Volleys Fired 46 | . 28 18 . . . Largest 2 | . 2 2 . . . Hottest 70 | . 70 70 . . . Shots Fired 191 | . 56 36 . 25 74 Gun 191 | . 56 36 . 25 74 Cannon . | . . . . . . Launcher . | . . . . . . Special . | . . . . . . Kinetic 145 | . 28 18 . 25 74 Thermal 42 | . 24 18 . . . Explosive . | . . . . . . Electromagnetic 4 | . 4 . . . . Robot Hit Streak 41 | . 9 13 . 18 41 Robot Miss Streak 9 | . 9 3 . 4 3 Penetration Max . | . . . . . . Secondary Targets 3 | . 3 . . . . Max Gunslinging Chain 1 | . 1 . . . . Autonomous 99 | . . . . 25 74 Shots Hit Robots 147 | . 33 24 . 21 69 Core Hits 71 | . 13 10 . 12 36 Critical Hits . | . . . . . . Critical Kills . | . . . . . . Critical Parts Destroyed . | . . . . . . Melee Attacks . | . . . . . . Impact . | . . . . . . Slashing . | . . . . . . Piercing . | . . . . . . Sneak Attacks . | . . . . . . Combat Hostiles . | . . . . . . Follow-up Attacks . | . . . . . . Damage Inflicted 3438 | . 408 260 . 580 2190 Guns 3433 | . 408 255 . 580 2190 Cannons . | . . . . . . Explosions . | . . . . . . Melee . | . . . . . . Ramming 5 | . . 5 . . . Kinetic 3048 | . 197 81 . 580 2190 Thermal 348 | . 174 174 . . . Explosive . | . . . . . . Electromagnetic 37 | . 37 . . . . Impact . | . . . . . . Slashing . | . . . . . . Piercing . | . . . . . . Highest Corruption . | . . . . . . Average Corruption . | . . . . . . Corruption Purged . | . . . . . . Overload Shots . | . . . . . . Overflow Damage . | . . . . . . Projectiles . | . . . . . . Explosions . | . . . . . . Melee . | . . . . . . Knockbacks . | . . . . . . Impact . | . . . . . . Kinetic . | . . . . . . Secondary . | . . . . . . Self-Inflicted Damage . | . . . . . . Shots . | . . . . . . Rammed 2 | . . 2 . . . Targets Rammed 2 | . . 2 . . . Kicked . | . . . . . . Crushed . | . . . . . . Highest Temperature 214 | . 169 214 . . . Average Temperature 65 | . 52 84 . . . Received Heat Transfer 258 | . 126 . . 33 99 Siege Activations . | . . . . . . Robots Corrupted . | . . . . . . Combat Hostiles . | . . . . . . Parts Fried . | . . . . . . Impact Corruptions . | . . . . . . Robots Melted . | . . . . . . Combat Hostiles . | . . . . . . Parts Melted 2 | . . 2 . . . Heat Transferred 1036 | . 518 518 . . . Parts Sabotaged . | . . . . . . Parts Stolen . | . . . . . . Parts Stripped . | . . . . . . Power Chain Reactions . | . . . . . . Missiles Intercepted . | . . . . . . Alert | -11 -10 -10 -10 -9 -8 ------- Run | Scr Mat Min Exi Min Mat Peak Influence 623 | . 145 149 . 205 623 Average Influence 166 | . 67 99 . 121 298 Maximum Alert Level 2 | . . . . 1 2 Low Security (%) 72 | . . . . . . Level 1 21 | . . . . . . Level 2 6 | . . . . . . Level 3 . | . . . . . . Level 4 . | . . . . . . Level 5 . | . . . . . . High Security . | . . . . . . Max Security . | . . . . . . Squads Dispatched 6 | . . . . . 6 Investigation 1 | . . . . . 1 Extermination . | . . . . . . Reinforcement 2 | . . . . . 2 Assault . | . . . . . . Garrison 3 | . . . . . 3 Intercept . | . . . . . . Construction Impeded 1 | . . . . . 1 Haulers Reinforced . | . . . . . . Stealth | -11 -10 -10 -10 -9 -8 --------- Run | Scr Mat Min Exi Min Mat Distress Signals 4 | . 1 . . . 3 Communications Jammed . | . . . . . . Distress Signals . | . . . . . . Times Spotted 59 | . 8 13 . 10 28 Peak Tracking Total 14 | . 3 14 . 4 8 Tactical Retreats 4 | . . 2 . 1 1 Traps | -11 -10 -10 -10 -9 -8 ------- Run | Scr Mat Min Exi Min Mat Traps Triggered 1 | . . . . . 1 Indirectly . | . . . . . . Trap Hack Attempts . | . . . . . . Triggered . | . . . . . . Disarmed . | . . . . . . Reprogrammed . | . . . . . . Reused 1 | . . 1 . . . Traps Extracted . | . . . . . . Installed 1 | . . 1 . . . Triggered . | . . . . . . Machines | -11 -10 -10 -10 -9 -8 ---------- Run | Scr Mat Min Exi Min Mat Machines Disabled 1 | . . . . . 1 Max in Single Turn 1 | . . . . . 1 Machines Sabotaged . | . . . . . . Garrisons Compromised . | . . . . . . Overloaded Fab Kills . | . . . . . . Fab Network Shutdowns . | . . . . . . Hacking | -11 -10 -10 -10 -9 -8 --------- Run | Scr Mat Min Exi Min Mat Machines Accessed 3 | . . . . . 3 Terminals 3 | . . . . . 3 Fabricators . | . . . . . . Repair Stations . | . . . . . . Recycling Units . | . . . . . . Scanalyzers . | . . . . . . Garrison Access . | . . . . . . Total Hacks 12 | . . . . . 12 Successful 6 | . . . . . 6 Failed 6 | . . . . . 6 Catastrophic 1 | . . . . . 1 Database Lockouts . | . . . . . . Manual 11 | . . . 1 . 10 Terminals 12 | . . . . . 12 Fabricators . | . . . . . . Repair Stations . | . . . . . . Recycling Units . | . . . . . . Scanalyzers . | . . . . . . Garrison Access . | . . . . . . Terminal Hacks 2 | . . . . . 2 Emergency Access Points 1 | . . . . . 1 Terminal Index 1 | . . . . . 1 Fabricator Hacks . | . . . . . . Repair Station Hacks . | . . . . . . Recycling Unit Hacks . | . . . . . . Scanalyzer . | . . . . . . Garrison Access Hacks . | . . . . . . Unauthorized Hacks 10 | . . . . . 10 Terminals 4 | . . . . . 4 Track 2 | . . . . . 2 Botnet 2 | . . . . . 2 Fabricators . | . . . . . . Repair Stations . | . . . . . . Recycling Units . | . . . . . . Scanalyzers . | . . . . . . Garrison Access . | . . . . . . Data Cores Recovered . | . . . . . . Used . | . . . . . . Hacking Detections 3 | . . . . . 3 Full Trace Events . | . . . . . . Feedback Events . | . . . . . . Feedback Blocked . | . . . . . . Robot Schematics Acquired . | . . . . . . Robots Built . | . . . . . . Matter . | . . . . . . Time . | . . . . . . Total Robot Build Rating . | . . . . . . Part Schematics Acquired . | . . . . . . Parts Built . | . . . . . . Matter . | . . . . . . Time . | . . . . . . Total Part Build Rating . | . . . . . . Parts Repaired . | . . . . . . Time . | . . . . . . Parts Recycled . | . . . . . . Recycled Matter . | . . . . . . Retrieved Matter . | . . . . . . Retrieved Components . | . . . . . . Parts Scanalyzed . | . . . . . . Part Schematics Acquired . | . . . . . . Parts Damaged . | . . . . . . Bothacking | -11 -10 -10 -10 -9 -8 ------------ Run | Scr Mat Min Exi Min Mat Used RIF Installer . | . . . . . . Robots Hacked . | . . . . . . Non-combat . | . . . . . . Combat . | . . . . . . Robot Hacks Applied . | . . . . . . Relay Couplers Released . | . . . . . . Robots Rewired . | . . . . . . Allies Hacked . | . . . . . . Hacks Repelled . | . . . . . . Allies | -11 -10 -10 -10 -9 -8 -------- Run | Scr Mat Min Exi Min Mat Total Allies 2 | . . 2 . . . Largest Group 2 | . . 2 . . . Highest-Rated Group 46 | . . 46 . . . Highest-Rated Ally 31 | . . 31 . . . Total Orders . | . . . . . . Ally Attacks 7 | . . 7 . . . Total Damage 103 | . . 103 . . . Kills . | . . . . . . Allies Corrupted . | . . . . . . Allies Melted . | . . . . . . Intel | -11 -10 -10 -10 -9 -8 ------- Run | Scr Mat Min Exi Min Mat Robot Analysis Total . | . . . . . . Derelict Logs Recovered 4 | . . 1 . 3 . Drone Launches . | . . . . . . Drone Recoveries . | . . . . . . Exploration | -11 -10 -10 -10 -9 -8 ------------- Run | Scr Mat Min Exi Min Mat Turns Passed 2417 | 63 290 362 516 525 661 Spaces Moved 1273 | 52 98 167 308 296 352 Core 30 | 30 . . . . . Treads 1243 | 22 98 167 308 296 352 Legs . | . . . . . . Wheels . | . . . . . . Hover . | . . . . . . Flight . | . . . . . . Fastest Speed 50 | 50 160 160 160 160 160 Average Speed 159 | 96 160 160 163 164 160 Slowest Speed 180 | 160 160 160 180 180 160 Overloaded Moves . | . . . . . . Propulsion Burnouts . | . . . . . . Robots Hopped . | . . . . . . Cave-ins Triggered . | . . . . . . Exploration Rate (%) 39 | 5 17 41 65 77 31 Regions Visited 5 Branch Regions 3 Pre-discovered Areas 1 | . . . . 1 . Known Exits Taken . | . . . . . . Unknown Exits Taken 5 | 1 1 1 1 1 . Scrap Searched 1 | . . . . 1 . Spaces Dug . | . . . . . . Terrain Destroyed 45 | . . . . 13 32 Melee . | . . . . . . Projectile 45 | . . . . 13 32 AOE . | . . . . . . Actions | -11 -10 -10 -10 -9 -8 --------- Run | Scr Mat Min Exi Min Mat Total 1575 | 64 176 229 321 336 449 Wait 178 | 4 37 34 . 36 67 Move 1268 | 51 97 166 307 295 352 Hop . | . . . . . . Pick Up 31 | 4 5 7 3 1 11 Fast Attach 7 | 2 . . 2 1 2 Attach 8 | 3 2 . . . 3 Detach 3 | . . . 1 1 1 Swap 15 | . 5 . 3 . 7 Drop 16 | . 2 1 5 2 6 Fire 46 | . 28 18 . . . Melee . | . . . . . . Ram . | . . . . . . Kick . | . . . . . . Crush 2 | . . 2 . . . Escape Stasis . | . . . . . . Rewire . | . . . . . . Trap 1 | . . 1 . . . Miscellaneous . | . . . . . . Route ------- -11/Scrapyard -10/Materials (discovered 2 exits: [*Mat] / [*Min]) -10/Mines -10/Exiles -9/Mines -8/Materials (discovered 1 exit: [*Fac]) History --------- Turn | Location | Event 5 | -11/Scrapyard | Discovered new exit (range 16) 64 | -11/Scrapyard | Entered Materials 178 | -10/Materials | Discovered new exit (range 12) 189 | -10/Materials | Discovered new exit (range 15) 318 | -10/Materials | Build established: Mutant 354 | -10/Materials | Entered Mines 426 | -10/Mines | Found a hidden stash of uninstalled traps 529 | -10/Mines | Assembled infested the area 534 | -10/Mines | Assisted by a Guerilla fighting off Assembled 538 | -10/Mines | Learned Materials stockpile data 710 | -10/Mines | Deemed a non-threat by the Exiles lab entrance 710 | -10/Mines | Discovered new exit (range 5) 716 | -10/Mines | Entered Exiles 756 | -10/Exiles | Met 8R-AWN 784 | -10/Exiles | Met EX-HEX 898 | -10/Exiles | Met EX-BIN 916 | -10/Exiles | Aligned with FarCom system 917 | -10/Exiles | Given EX-Vault access code 954 | -10/Exiles | Opened EX-Vault 966 | -10/Exiles | Found Prototype Energy Cannon 967 | -10/Exiles | Identified Latent Energy Streamer 978 | -10/Exiles | Found Prototype Ballistic Gun 978 | -10/Exiles | Identified AWS/Gauss 1013 | -10/Exiles | Warned to stay clear of 0b10 Research branches 1058 | -10/Exiles | Met EX-DEC 1216 | -10/Exiles | Discovered new exit (range 11) 1232 | -10/Exiles | Left Exiles lab with AWS/Gauss 1232 | -10/Exiles | Entered Mines 1543 | -9/Mines | Learned location of Zion (-6) 1546 | -9/Mines | Learned Materials emergency access door positions 1560 | -9/Mines | Learned Materials security intel 1747 | -9/Mines | Discovered new exit (range 4) 1757 | -9/Mines | Entered Materials 1757 | -8/Materials | Evolved 4 slots: Propulsion x2, Utility x2 1818 | -8/Materials | Garrison activated, responded to threat 2169 | -8/Materials | Discovered new exit (range 5) 2330 | -8/Materials | Destroyed 10 combat bots 2418 | -8/Materials | Self-destructed Last Messages --------------- 02322_ U-05 Engineer builds a Wall. 02325_ K-01 Serf collects debris. 02339_ Slug penetrates G-47 Trooper. 02339_ G-47 Trooper destroyed. 02339_ K-01 Serf collects debris. 02368_ Slug penetrates Wall. 02370_ Slug penetrates S-10 Pest. 02372_ S-10 Pest destroyed. 02372_ ALERT: Construction progress impeded, dispatching reinforcements to local area. 02373_ R-06 Scavenger collects Lgt. Nuclear Core. 02378_ R-06 Scavenger collects Particle Gun. 02405_ Slug penetrates G-47 Trooper. 02405_ G-47 Trooper destroyed. 02405_ Slug penetrates Wall. 02411_ Slug penetrates G-47 Trooper. 02411_ G-47 Trooper destroyed. 02412_ Slug penetrates G-47 Trooper. 02412_ Slug penetrates Earth. 02413_ G-47 Trooper destroyed. Map ----- +----------------------------------------------------+ | ????????????????????????????????????????? | | ????????????????????????????????????????? | | ????????????????????????????????????????? | | ????????????????????????????????????????? | | ????????????????????????????????????????? | | ????????????????????????????????????????? | | ????????????????????????????????????????? | | ????????????????????????????????????????? | | ????????????????????????? ??????????????? | | ????????????????????????? ??????????????? | | ????????????????????????? ??????????????? | | ????????????????????????? ??????????????? | | ????????????????????????? ??????????????? | | ????????????????????????? ??????????????? | | ????????????????????????? ????###???????? | | ????????????????#???????# #???# #???????? | | ????????????????;?###???# #???#"##??????? | | ???????????????# ## ??# #???!!!##?????? | | ???????????????# ##"""??# #??? !#?????? | | ?????????????###;##"R ?# #??? !#?????? | | ?????????????? #""" ?+ #???# ####### | | ??????????????? # # #???# | | ????????##+##??# # # ##### | | ????????# / ?#* # + *% | | ????????# ##=u####### %"######## | | ????????# +=@*! t ##??????? | | ????????# """ ##[[ #???????? | | ????????# """ ?#%=############# #???????? | | ????????# """??#= #???????????# #???????? | | ??????Y?# ??# +???????????# #???????? | | ????????# ""???# #???????????# #???????? | | ????????# ""???# #???????????# #???????? | | ????????# "????#+##???????????# ########? | | ????????????????????????????### #= [ #? | | ????????????????????????????# # #? | | ??????????+?????????????????# # " #? | | ????????????????????????????# # "" #? | | ????????????????????????????# + "" #? | | ????????##+##???????????????# # #? | | ????????# ###+########???# ######### | | ????????# "## #???# | | ????????# "## * T #???# g | | ????????# "## = #???# [% | | ????????# T## =#???# =*[[ | | ????????# "## """ =[#???# g%###+### | | ????????# "## """ !!!#???# g=## #?? | | ???!????# "## """ !!=##??# %##! #??? | | ????????# ?# !*=%#?## ## #??? | | ??????####+########+######## " ] #??? | | ??????# =%[*%= r ==%# #??? | +----------------------------------------------------+ Best States ------------- Heat Dissipation 31 Energy Generation 18 Energy Capacity 310 Matter Stores 490 Matter Capacity 500 Sight Range 16 Terrain Scan Density 10 ECM Strength 2 Armor Coverage 150 Utility Shielding 66 Evasion (%) 50 Recoil Reduction 4 Item Schematics ----------------- None Robot Schematics ------------------ None Fabricated ------------ Nothing Alien Tech Used ----------------- None Achievements -------------- None Challenges ------------ None Game ------ Seed ScatterSmartbombLauncher Manual? 0 Play Time 00:19:42 Cumulative 74.6 hours Start 2019.11.01 @ 03:50:14 End 2019.11.01 @ 04:08:51 Sessions 1 Manual Loads 0 Difficulty Rogue Special Mode None Game No. 120 Rogue 120 Adventurer 0 Explorer 0 Win Type - Total 0 Types 0/0/0/0/0/0/0 Lore% 30 Gallery% 42 Achievement% 30 Wizard Run 0 Options --------- ASCII 0 Keyboard 0 Movement Mouse Keybinds 0 Fullscreen 1 Font 18/SmallcapsGlow Map View 76x50 Tactical HUD 1 Map Filters NONE Filters NONE Steam 1 RUN: d06dba04-738c-430e-a54d-775336bff97a